[Event "January 2 Early 2024"]
[Site "https://www.chess.com"]
[Date "2024.01.02"]
[Round "5"]
[White "Garcia Ramos, Daniel"]
[Black "Shishkov, Andrei"]
[Result "1-0"]
[Board "78"]
[TimeControl "180+1"]
[WhiteFideId "32010311"]
[BlackFideId "4500563"]
[WhiteElo "2755"]
[BlackElo "2492"]
[WhiteTeam "ESP"]
[BlackTeam "EST"]
[WhiteClock "0:02:01"]
[BlackClock "0:00:06"]

1. b3 {[%clk 0:03:00]}  e5 {[%clk 0:02:59]} 2. Bb2 {[%clk 0:03:01]}  Nc6 {[%clk 0:03:00]} 3. Nf3 {[%clk 0:03:01]}  Nf6 {[%clk 0:03:00]} 4. Nxe5 {[%clk 0:03:00]}  Nxe5 {[%clk 0:02:48]} 5. Bxe5 {[%clk 0:03:00]}  Be7 {[%clk 0:02:39]} 6. Bb2 {[%clk 0:02:59]}  O-O {[%clk 0:02:39]} 7. g3 {[%clk 0:02:59]}  d5 {[%clk 0:02:36]} 8. Bg2 {[%clk 0:03:00]}  Re8 {[%clk 0:02:30]} 9. O-O {[%clk 0:02:59]}  Bg4 {[%clk 0:02:29]} 10. h3 {[%clk 0:02:56]}  Bh5 {[%clk 0:02:26]} 11. d4 {[%clk 0:02:55]}  Bb4 {[%clk 0:02:12]} 12. Bf3 {[%clk 0:02:52]}  Bxf3 {[%clk 0:01:52]} 13. exf3 {[%clk 0:02:53]}  Qe7 {[%clk 0:01:43]} 14. c3 {[%clk 0:02:50]}  Bd6 {[%clk 0:01:40]} 15. Nd2 {[%clk 0:02:50]}  Qe2 {[%clk 0:01:26]} 16. Re1 {[%clk 0:02:26]}  Qd3 {[%clk 0:01:17]} 17. Rxe8+ {[%clk 0:02:25]}  Rxe8 {[%clk 0:01:16]} 18. Nf1 {[%clk 0:02:26]}  Qe2 {[%clk 0:00:52]} 19. Rb1 {[%clk 0:02:13]}  h5 {[%clk 0:00:39]} 20. h4 {[%clk 0:02:12]}  a5 {[%clk 0:00:32]} 21. Kg2 {[%clk 0:02:10]}  c6 {[%clk 0:00:23]} 22. Qxe2 {[%clk 0:02:00]}  Rxe2 {[%clk 0:00:24]} 23. Ne3 {[%clk 0:02:01]}  g6 {[%clk 0:00:14]} 24. Kf1 {[%clk 0:02:01]}  Rd2 {[%clk 0:00:14]} 25. Ke1 {[%clk 0:02:01]}  Rd3 {[%clk 0:00:06]} 26. Ke2 {[%clk 0:02:01]} 1-0

[Event "January 2 Early 2024"]
[Site "https://www.chess.com"]
[Date "2024.01.02"]
[Round "5"]
[White "Mekhane, Adam"]
[Black "Bardyk, Artem"]
[Result "1-0"]
[Board "79"]
[TimeControl "180+1"]
[WhiteFideId "36050601"]
[BlackFideId "34349979"]
[WhiteElo "2492"]
[BlackElo "2744"]
[WhiteTeam "FRA"]
[BlackTeam "RUS"]
[WhiteClock "0:00:56"]
[BlackClock "0:00:00"]

1. e4 {[%clk 0:03:00]}  e5 {[%clk 0:02:57]} 2. Nf3 {[%clk 0:02:58]}  Nc6 {[%clk 0:02:57]} 3. Bc4 {[%clk 0:02:56]}  Nf6 {[%clk 0:02:56]} 4. d3 {[%clk 0:02:56]}  Bc5 {[%clk 0:02:55]} 5. a4 {[%clk 0:02:52]}  d6 {[%clk 0:02:51]} 6. O-O {[%clk 0:02:51]}  h6 {[%clk 0:02:41]} 7. Be3 {[%clk 0:02:51]}  Bb6 {[%clk 0:02:37]} 8. c3 {[%clk 0:02:50]}  O-O {[%clk 0:02:30]} 9. b4 {[%clk 0:02:46]}  Bxe3 {[%clk 0:02:23]} 10. fxe3 {[%clk 0:02:46]}  a5 {[%clk 0:02:24]} 11. b5 {[%clk 0:02:41]}  Ne7 {[%clk 0:02:24]} 12. Bb3 {[%clk 0:02:27]}  Ng6 {[%clk 0:02:22]} 13. Nbd2 {[%clk 0:02:26]}  c6 {[%clk 0:02:22]} 14. Qc2 {[%clk 0:02:19]}  cxb5 {[%clk 0:02:15]} 15. axb5 {[%clk 0:02:18]}  Qb6 {[%clk 0:02:16]} 16. Nc4 {[%clk 0:02:12]}  Qxb5 {[%clk 0:02:04]} 17. Nxd6 {[%clk 0:02:11]}  Qc5 {[%clk 0:02:02]} 18. Nc4 {[%clk 0:02:08]}  Qc7 {[%clk 0:01:42]} 19. d4 {[%clk 0:02:03]}  exd4 {[%clk 0:01:19]} 20. exd4 {[%clk 0:02:01]}  Be6 {[%clk 0:00:55]} 21. d5 {[%clk 0:01:54]}  Bg4 {[%clk 0:00:55]} 22. Kh1 {[%clk 0:01:48]}  Bxf3 {[%clk 0:00:52]} 23. Rxf3 {[%clk 0:01:46]}  Ne5 {[%clk 0:00:43]} 24. Rxf6 {[%clk 0:01:16]}  gxf6 {[%clk 0:00:41]} 25. Ne3 {[%clk 0:01:16]}  Ng6 {[%clk 0:00:33]} 26. Rf1 {[%clk 0:01:12]}  Ra6 {[%clk 0:00:24]} 27. Nf5 {[%clk 0:01:10]}  Rc8 {[%clk 0:00:17]} 28. Qd2 {[%clk 0:01:07]}  Qc5 {[%clk 0:00:06]} 29. d6 {[%clk 0:01:02]}  Rxd6 {[%clk 0:00:00]} 30. Qxh6 {[%clk 0:00:56]} 1-0

[Event "January 2 Early 2024"]
[Site "https://www.chess.com"]
[Date "2024.01.02"]
[Round "5"]
[White "Korpics, Zsolt"]
[Black "Rakitin, Daniil"]
[Result "1/2-1/2"]
[Board "81"]
[TimeControl "180+1"]
[WhiteFideId "705241"]
[BlackFideId "24219762"]
[WhiteElo "2488"]
[BlackElo "2717"]
[WhiteTeam "HUN"]
[BlackTeam "RUS"]
[WhiteClock "0:00:07"]
[BlackClock "0:00:11"]

1. e4 {[%clk 0:03:00]}  c5 {[%clk 0:02:57]} 2. Nf3 {[%clk 0:03:01]}  Nc6 {[%clk 0:02:57]} 3. d4 {[%clk 0:03:01]}  cxd4 {[%clk 0:02:58]} 4. Nxd4 {[%clk 0:03:02]}  Nf6 {[%clk 0:02:58]} 5. Nc3 {[%clk 0:03:02]}  d6 {[%clk 0:02:58]} 6. Bg5 {[%clk 0:02:59]}  e6 {[%clk 0:02:54]} 7. Qd2 {[%clk 0:02:59]}  a6 {[%clk 0:02:53]} 8. O-O-O {[%clk 0:02:58]}  Be7 {[%clk 0:02:54]} 9. Kb1 {[%clk 0:02:57]}  Bd7 {[%clk 0:02:53]} 10. f4 {[%clk 0:02:54]}  Rc8 {[%clk 0:02:52]} 11. Be2 {[%clk 0:02:21]}  h6 {[%clk 0:02:45]} 12. Bh4 {[%clk 0:02:17]}  Qc7 {[%clk 0:02:11]} 13. Nb3 {[%clk 0:01:56]}  b5 {[%clk 0:01:57]} 14. a3 {[%clk 0:01:46]}  O-O {[%clk 0:01:16]} 15. g4 {[%clk 0:01:40]}  Nxe4 {[%clk 0:01:10]} 16. Nxe4 {[%clk 0:01:38]}  Bxh4 {[%clk 0:01:11]} 17. Nxd6 {[%clk 0:01:36]}  Rcd8 {[%clk 0:01:09]} 18. Qe3 {[%clk 0:01:19]}  Bc8 {[%clk 0:01:05]} 19. Nxc8 {[%clk 0:01:13]}  Rxc8 {[%clk 0:01:05]} 20. Bd3 {[%clk 0:00:57]}  Be7 {[%clk 0:00:57]} 21. g5 {[%clk 0:00:53]}  h5 {[%clk 0:00:36]} 22. g6 {[%clk 0:00:51]}  e5 {[%clk 0:00:23]} 23. Qh3 {[%clk 0:00:38]}  fxg6 {[%clk 0:00:09]} 24. Bxg6 {[%clk 0:00:37]}  Rxf4 {[%clk 0:00:10]} 25. Qxh5 {[%clk 0:00:17]}  Rh4 {[%clk 0:00:10]} 26. Qf5 {[%clk 0:00:17]}  Bf6 {[%clk 0:00:02]} 27. Rd7 {[%clk 0:00:15]}  Qb8 {[%clk 0:00:02]} 28. Qe6+ {[%clk 0:00:15]}  Kh8 {[%clk 0:00:02]} 29. Rhd1 {[%clk 0:00:09]}  Nd4 {[%clk 0:00:02]} 30. Qd5 {[%clk 0:00:03]}  Nxb3 {[%clk 0:00:02]} 31. cxb3 {[%clk 0:00:02]}  Rf8 {[%clk 0:00:02]} 32. Rf7 {[%clk 0:00:01]}  Rxf7 {[%clk 0:00:02]} 33. Qxf7 {[%clk 0:00:02]}  Qg8 {[%clk 0:00:02]} 34. Qxg8+ {[%clk 0:00:02]}  Kxg8 {[%clk 0:00:03]} 35. Rc1 {[%clk 0:00:02]}  Kf8 {[%clk 0:00:03]} 36. Rc8+ {[%clk 0:00:03]}  Ke7 {[%clk 0:00:04]} 37. Re8+ {[%clk 0:00:03]}  Kd6 {[%clk 0:00:05]} 38. Ra8 {[%clk 0:00:04]}  Rxh2 {[%clk 0:00:05]} 39. Rxa6+ {[%clk 0:00:04]}  Kc5 {[%clk 0:00:06]} 40. b4+ {[%clk 0:00:05]}  Kd4 {[%clk 0:00:06]} 41. Rd6+ {[%clk 0:00:04]}  Ke3 {[%clk 0:00:06]} 42. Rd5 {[%clk 0:00:04]}  e4 {[%clk 0:00:07]} 43. Rxb5 {[%clk 0:00:04]}  Rxb2+ {[%clk 0:00:07]} 44. Kc1 {[%clk 0:00:04]}  Ra2 {[%clk 0:00:08]} 45. Rc5 {[%clk 0:00:02]}  Kd3 {[%clk 0:00:07]} 46. Rd5+ {[%clk 0:00:03]}  Kc4 {[%clk 0:00:06]} 47. Rd7 {[%clk 0:00:02]}  e3 {[%clk 0:00:04]} 48. Bf7+ {[%clk 0:00:02]}  Kc3 {[%clk 0:00:03]} 49. Bxa2 {[%clk 0:00:02]}  e2 {[%clk 0:00:04]} 50. Rd1 {[%clk 0:00:02]}  exd1=Q+ {[%clk 0:00:03]} 51. Kxd1 {[%clk 0:00:02]}  Kb2 {[%clk 0:00:04]} 52. Bf7 {[%clk 0:00:01]}  Kxa3 {[%clk 0:00:05]} 53. b5 {[%clk 0:00:01]}  Bd4 {[%clk 0:00:06]} 54. b6 {[%clk 0:00:01]}  Bxb6 {[%clk 0:00:06]} 55. Ke2 {[%clk 0:00:02]}  Bd8 {[%clk 0:00:07]} 56. Kf3 {[%clk 0:00:03]}  Bf6 {[%clk 0:00:08]} 57. Kg4 {[%clk 0:00:04]}  Kb4 {[%clk 0:00:09]} 58. Kf5 {[%clk 0:00:05]}  Kc5 {[%clk 0:00:10]} 59. Kg6 {[%clk 0:00:06]}  Kd6 {[%clk 0:00:11]} 60. Bg8 {[%clk 0:00:06]}  Ke5 {[%clk 0:00:11]} 61. Ba2 {[%clk 0:00:06]}  Kd6 {[%clk 0:00:12]} 62. Bb1 {[%clk 0:00:05]}  Ke7 {[%clk 0:00:13]} 63. Bc2 {[%clk 0:00:06]}  Kf8 {[%clk 0:00:11]} 64. Bd3 {[%clk 0:00:07]} 1/2-1/2

[Event "January 2 Early 2024"]
[Site "https://www.chess.com"]
[Date "2024.01.02"]
[Round "5"]
[White "Aldokhin, Ivan"]
[Black "Pourkashiyan, Atousa"]
[Result "1-0"]
[Board "84"]
[TimeControl "180+1"]
[WhiteFideId "24115720"]
[BlackFideId "12502014"]
[WhiteElo "2666"]
[BlackElo "2480"]
[WhiteTeam "RUS"]
[BlackTeam "USA"]
[WhiteClock "0:00:08"]
[BlackClock "0:00:36"]

1. e4 {[%clk 0:02:35]}  c5 {[%clk 0:02:51]} 2. Nf3 {[%clk 0:02:35]}  e6 {[%clk 0:02:49]} 3. d4 {[%clk 0:02:35]}  cxd4 {[%clk 0:02:50]} 4. Nxd4 {[%clk 0:02:36]}  a6 {[%clk 0:02:50]} 5. Nc3 {[%clk 0:02:36]}  Qc7 {[%clk 0:02:49]} 6. Bd3 {[%clk 0:02:36]}  Nf6 {[%clk 0:02:49]} 7. Qe2 {[%clk 0:02:36]}  d6 {[%clk 0:02:47]} 8. Bd2 {[%clk 0:02:36]}  Be7 {[%clk 0:02:47]} 9. O-O {[%clk 0:02:36]}  Nc6 {[%clk 0:02:46]} 10. Nxc6 {[%clk 0:02:27]}  bxc6 {[%clk 0:02:45]} 11. f4 {[%clk 0:02:28]}  Qb6+ {[%clk 0:02:41]} 12. Kh1 {[%clk 0:02:27]}  Qxb2 {[%clk 0:02:35]} 13. Na4 {[%clk 0:01:58]}  Qd4 {[%clk 0:02:29]} 14. c4 {[%clk 0:01:57]}  Qa7 {[%clk 0:02:26]} 15. e5 {[%clk 0:01:29]}  dxe5 {[%clk 0:02:09]} 16. fxe5 {[%clk 0:01:27]}  Nd7 {[%clk 0:02:10]} 17. Rxf7 {[%clk 0:01:12]}  Kxf7 {[%clk 0:02:04]} 18. Qh5+ {[%clk 0:01:04]}  g6 {[%clk 0:01:45]} 19. Rf1+ {[%clk 0:00:46]}  Kg8 {[%clk 0:01:24]} 20. Bxg6 {[%clk 0:00:39]}  Bf6 {[%clk 0:00:40]} 21. Bf7+ {[%clk 0:00:21]}  Kf8 {[%clk 0:00:40]} 22. exf6 {[%clk 0:00:20]}  Nxf6 {[%clk 0:00:39]} 23. Qh6+ {[%clk 0:00:10]}  Kxf7 {[%clk 0:00:35]} 24. Qxf6+ {[%clk 0:00:10]}  Ke8 {[%clk 0:00:35]} 25. Qxh8+ {[%clk 0:00:10]}  Kd7 {[%clk 0:00:36]} 26. Rf7+ {[%clk 0:00:10]}  Kd6 {[%clk 0:00:36]} 27. Bf4+ {[%clk 0:00:07]}  e5 {[%clk 0:00:36]} 28. Qxe5# {[%clk 0:00:08]} 1-0

[Event "January 2 Early 2024"]
[Site "https://www.chess.com"]
[Date "2024.01.02"]
[Round "5"]
[White "Cruz Ravina, Francisco Javier"]
[Black "Guerra Tulcan, Lenin"]
[Result "1/2-1/2"]
[Board "88"]
[TimeControl "180+1"]
[WhiteFideId "2228939"]
[BlackFideId "3601382"]
[WhiteElo "2467"]
[BlackElo "2651"]
[WhiteTeam "ESP"]
[BlackTeam "ECU"]
[WhiteClock "0:00:03"]
[BlackClock "0:00:16"]

1. e4 {[%clk 0:02:58]}  c5 {[%clk 0:03:00]} 2. Nf3 {[%clk 0:02:58]}  e6 {[%clk 0:03:00]} 3. b3 {[%clk 0:02:58]}  b6 {[%clk 0:02:59]} 4. Bb2 {[%clk 0:02:58]}  Bb7 {[%clk 0:03:00]} 5. Qe2 {[%clk 0:02:57]}  Nf6 {[%clk 0:03:00]} 6. d3 {[%clk 0:02:56]}  Be7 {[%clk 0:03:00]} 7. g3 {[%clk 0:02:56]}  d5 {[%clk 0:03:00]} 8. Nbd2 {[%clk 0:02:54]}  O-O {[%clk 0:02:57]} 9. Bg2 {[%clk 0:02:54]}  Nbd7 {[%clk 0:02:57]} 10. e5 {[%clk 0:02:51]}  Ne8 {[%clk 0:02:57]} 11. O-O {[%clk 0:02:50]}  Rc8 {[%clk 0:02:55]} 12. c4 {[%clk 0:02:50]}  Qc7 {[%clk 0:02:54]} 13. Rfe1 {[%clk 0:02:48]}  Qb8 {[%clk 0:02:54]} 14. Nf1 {[%clk 0:02:45]}  Qa8 {[%clk 0:02:55]} 15. Bc1 {[%clk 0:02:34]}  d4 {[%clk 0:02:50]} 16. Bf4 {[%clk 0:02:24]}  g6 {[%clk 0:02:12]} 17. h4 {[%clk 0:02:22]}  Ng7 {[%clk 0:02:12]} 18. N1h2 {[%clk 0:02:15]}  Nh5 {[%clk 0:02:11]} 19. Bh6 {[%clk 0:02:09]}  Rfe8 {[%clk 0:02:04]} 20. Qd2 {[%clk 0:02:04]}  f6 {[%clk 0:01:58]} 21. exf6 {[%clk 0:02:02]}  Bxf6 {[%clk 0:01:58]} 22. Re2 {[%clk 0:01:55]}  e5 {[%clk 0:01:49]} 23. Ne1 {[%clk 0:01:49]}  Bxg2 {[%clk 0:01:45]} 24. Nxg2 {[%clk 0:01:48]}  e4 {[%clk 0:01:45]} 25. Ng4 {[%clk 0:01:36]}  exd3 {[%clk 0:01:38]} 26. Nxf6+ {[%clk 0:01:29]}  Ndxf6 {[%clk 0:01:35]} 27. Qxd3 {[%clk 0:01:30]}  Rxe2 {[%clk 0:01:34]} 28. Qxe2 {[%clk 0:01:29]}  Re8 {[%clk 0:01:34]} 29. Qd3 {[%clk 0:01:20]}  Qe4 {[%clk 0:01:29]} 30. Qxe4 {[%clk 0:01:17]}  Nxe4 {[%clk 0:01:26]} 31. Re1 {[%clk 0:01:09]}  Kf7 {[%clk 0:01:26]} 32. Nf4 {[%clk 0:01:04]}  Nxf4 {[%clk 0:01:20]} 33. Bxf4 {[%clk 0:01:04]}  Nc3 {[%clk 0:01:20]} 34. Rxe8 {[%clk 0:01:00]}  Kxe8 {[%clk 0:01:20]} 35. Kf1 {[%clk 0:00:56]}  Nxa2 {[%clk 0:01:18]} 36. Bd2 {[%clk 0:00:40]}  a5 {[%clk 0:01:15]} 37. Ke2 {[%clk 0:00:39]}  Kf7 {[%clk 0:01:10]} 38. Kd3 {[%clk 0:00:36]}  Ke6 {[%clk 0:01:09]} 39. Ke4 {[%clk 0:00:35]}  h5 {[%clk 0:00:42]} 40. f3 {[%clk 0:00:34]}  Kf6 {[%clk 0:00:40]} 41. g4 {[%clk 0:00:25]}  hxg4 {[%clk 0:00:38]} 42. fxg4 {[%clk 0:00:25]}  Ke6 {[%clk 0:00:37]} 43. h5 {[%clk 0:00:20]}  gxh5 {[%clk 0:00:37]} 44. gxh5 {[%clk 0:00:20]}  Kf6 {[%clk 0:00:38]} 45. Kd5 {[%clk 0:00:12]}  a4 {[%clk 0:00:25]} 46. bxa4 {[%clk 0:00:11]}  Nc3+ {[%clk 0:00:26]} 47. Kc6 {[%clk 0:00:10]}  Nxa4 {[%clk 0:00:26]} 48. Kb5 {[%clk 0:00:09]}  Nb2 {[%clk 0:00:26]} 49. h6 {[%clk 0:00:07]}  Kg6 {[%clk 0:00:22]} 50. Bf4 {[%clk 0:00:06]}  d3 {[%clk 0:00:17]} 51. Kxb6 {[%clk 0:00:04]}  Nxc4+ {[%clk 0:00:16]} 52. Kxc5 {[%clk 0:00:05]}  Ne5 {[%clk 0:00:16]} 53. Kd4 {[%clk 0:00:03]}  Nf7 {[%clk 0:00:15]} 54. Kxd3 {[%clk 0:00:03]}  Nxh6 {[%clk 0:00:16]} 1/2-1/2

[Event "January 2 Early 2024"]
[Site "https://www.chess.com"]
[Date "2024.01.02"]
[Round "5"]
[White "Antunez Soler, Luis"]
[Black "Bulatova, Kamaliya"]
[Result "1-0"]
[Board "92"]
[TimeControl "180+1"]
[WhiteFideId "3513335"]
[BlackFideId "34111546"]
[WhiteElo "2636"]
[BlackElo "2450"]
[WhiteTeam "CUB"]
[BlackTeam "RUS"]
[WhiteClock "0:00:07"]
[BlackClock "0:00:07"]

1. e4 {[%clk 0:03:00]}  c5 {[%clk 0:02:11]} 2. Nf3 {[%clk 0:03:00]}  d6 {[%clk 0:02:04]} 3. Bb5+ {[%clk 0:02:59]}  Bd7 {[%clk 0:02:03]} 4. Bxd7+ {[%clk 0:02:58]}  Qxd7 {[%clk 0:02:04]} 5. O-O {[%clk 0:02:58]}  Nc6 {[%clk 0:02:02]} 6. Re1 {[%clk 0:02:58]}  e6 {[%clk 0:01:56]} 7. c3 {[%clk 0:02:58]}  Nge7 {[%clk 0:01:51]} 8. d4 {[%clk 0:02:58]}  cxd4 {[%clk 0:01:51]} 9. cxd4 {[%clk 0:02:59]}  d5 {[%clk 0:01:51]} 10. e5 {[%clk 0:02:56]}  Ng6 {[%clk 0:01:49]} 11. h4 {[%clk 0:02:56]}  Bb4 {[%clk 0:01:41]} 12. Nc3 {[%clk 0:02:54]}  a6 {[%clk 0:01:37]} 13. h5 {[%clk 0:02:48]}  Nge7 {[%clk 0:01:37]} 14. h6 {[%clk 0:02:49]}  Nf5 {[%clk 0:01:34]} 15. hxg7 {[%clk 0:02:47]}  Nxg7 {[%clk 0:01:34]} 16. Bg5 {[%clk 0:02:45]}  Rg8 {[%clk 0:01:33]} 17. Rc1 {[%clk 0:02:39]}  Nf5 {[%clk 0:01:29]} 18. Qd3 {[%clk 0:02:32]}  h6 {[%clk 0:01:25]} 19. Bf6 {[%clk 0:02:29]}  Be7 {[%clk 0:01:23]} 20. Bxe7 {[%clk 0:02:17]}  Ncxe7 {[%clk 0:01:14]} 21. b4 {[%clk 0:02:10]}  Ng6 {[%clk 0:01:12]} 22. Ne2 {[%clk 0:01:53]}  Qe7 {[%clk 0:01:04]} 23. Rc5 {[%clk 0:01:38]}  Kf8 {[%clk 0:00:45]} 24. Rec1 {[%clk 0:01:34]}  Kg7 {[%clk 0:00:45]} 25. Qd2 {[%clk 0:01:22]}  Ngh4 {[%clk 0:00:34]} 26. Nxh4 {[%clk 0:01:18]}  Qxh4 {[%clk 0:00:34]} 27. R1c3 {[%clk 0:00:55]}  Kh8 {[%clk 0:00:23]} 28. g3 {[%clk 0:00:31]}  Rg4 {[%clk 0:00:09]} 29. Rc8+ {[%clk 0:00:28]}  Rxc8 {[%clk 0:00:09]} 30. Rxc8+ {[%clk 0:00:28]}  Kg7 {[%clk 0:00:10]} 31. Rc3 {[%clk 0:00:24]}  Qh5 {[%clk 0:00:09]} 32. Nf4 {[%clk 0:00:18]}  Qg5 {[%clk 0:00:09]} 33. Rd3 {[%clk 0:00:16]}  Rxf4 {[%clk 0:00:09]} 34. Qxf4 {[%clk 0:00:13]}  Qxf4 {[%clk 0:00:09]} 35. gxf4 {[%clk 0:00:13]}  Kg6 {[%clk 0:00:09]} 36. Kf1 {[%clk 0:00:12]}  Kh5 {[%clk 0:00:09]} 37. f3 {[%clk 0:00:09]}  Kh4 {[%clk 0:00:09]} 38. Kf2 {[%clk 0:00:09]}  h5 {[%clk 0:00:08]} 39. Rd1 {[%clk 0:00:09]}  Ng3 {[%clk 0:00:08]} 40. Rg1 {[%clk 0:00:07]}  a5 {[%clk 0:00:08]} 41. Rxg3 {[%clk 0:00:07]}  axb4 {[%clk 0:00:08]} 42. Rg1 {[%clk 0:00:07]}  b3 {[%clk 0:00:07]} 43. Rh1# {[%clk 0:00:07]} 1-0

[Event "January 2 Early 2024"]
[Site "https://www.chess.com"]
[Date "2024.01.02"]
[Round "5"]
[White "Poltorak, Sebastian"]
[Black "Micic, Aleksa"]
[Result "1-0"]
[Board "95"]
[TimeControl "180+1"]
[WhiteFideId "1199498"]
[BlackFideId "989940"]
[WhiteElo "2632"]
[BlackElo "2442"]
[WhiteTeam "POL"]
[BlackTeam "SRB"]
[WhiteClock "0:02:07"]
[BlackClock "0:00:55"]

1. e4 {[%clk 0:03:00]}  c5 {[%clk 0:02:59]} 2. Nc3 {[%clk 0:02:56]}  d6 {[%clk 0:02:58]} 3. d4 {[%clk 0:02:56]}  cxd4 {[%clk 0:02:58]} 4. Qxd4 {[%clk 0:02:56]}  Nc6 {[%clk 0:02:59]} 5. Bb5 {[%clk 0:02:56]}  Bd7 {[%clk 0:02:58]} 6. Bxc6 {[%clk 0:02:56]}  Bxc6 {[%clk 0:02:58]} 7. Bg5 {[%clk 0:02:57]}  Qa5 {[%clk 0:02:56]} 8. Nf3 {[%clk 0:02:56]}  Nf6 {[%clk 0:02:42]} 9. O-O-O {[%clk 0:02:42]}  b5 {[%clk 0:02:38]} 10. Bxf6 {[%clk 0:02:41]}  gxf6 {[%clk 0:02:35]} 11. Kb1 {[%clk 0:02:41]}  b4 {[%clk 0:02:33]} 12. Nd5 {[%clk 0:02:40]}  Rb8 {[%clk 0:02:20]} 13. Rhe1 {[%clk 0:02:27]}  Bg7 {[%clk 0:02:03]} 14. Nh4 {[%clk 0:02:22]}  e5 {[%clk 0:01:49]} 15. Qe3 {[%clk 0:02:08]}  Rc8 {[%clk 0:00:55]} 16. Nf5 {[%clk 0:02:07]} 1-0

[Event "January 2 Early 2024"]
[Site "https://www.chess.com"]
[Date "2024.01.02"]
[Round "5"]
[White "Hajiyev, Kanan"]
[Black "Goldin, Roman"]
[Result "1-0"]
[Board "96"]
[TimeControl "180+1"]
[WhiteFideId "13404148"]
[BlackFideId "2803860"]
[WhiteElo "2630"]
[BlackElo "2439"]
[WhiteTeam "AZE"]
[BlackTeam "ISR"]
[WhiteClock "0:01:17"]
[BlackClock "0:00:07"]

1. d4 {[%clk 0:03:00]}  Nf6 {[%clk 0:02:58]} 2. Nf3 {[%clk 0:03:01]}  e6 {[%clk 0:02:51]} 3. c4 {[%clk 0:03:01]}  Bb4+ {[%clk 0:02:51]} 4. Bd2 {[%clk 0:03:01]}  Qe7 {[%clk 0:02:51]} 5. Nc3 {[%clk 0:03:00]}  O-O {[%clk 0:02:49]} 6. g3 {[%clk 0:03:01]}  d6 {[%clk 0:02:49]} 7. Bg2 {[%clk 0:03:01]}  Nbd7 {[%clk 0:02:48]} 8. O-O {[%clk 0:03:02]}  a5 {[%clk 0:02:46]} 9. Qc2 {[%clk 0:02:59]}  c6 {[%clk 0:02:38]} 10. Rfd1 {[%clk 0:02:50]}  e5 {[%clk 0:02:36]} 11. e4 {[%clk 0:02:40]}  h6 {[%clk 0:02:23]} 12. h3 {[%clk 0:02:37]}  Re8 {[%clk 0:01:59]} 13. a3 {[%clk 0:02:23]}  Bxc3 {[%clk 0:01:58]} 14. Bxc3 {[%clk 0:02:24]}  exd4 {[%clk 0:01:50]} 15. Nxd4 {[%clk 0:02:25]}  Nc5 {[%clk 0:01:41]} 16. f3 {[%clk 0:02:13]}  a4 {[%clk 0:01:41]} 17. Rd2 {[%clk 0:02:10]}  Nfd7 {[%clk 0:01:25]} 18. Nf5 {[%clk 0:02:07]}  Qg5 {[%clk 0:01:19]} 19. h4 {[%clk 0:02:04]}  Qg6 {[%clk 0:01:18]} 20. Bxg7 {[%clk 0:01:51]}  Ne5 {[%clk 0:01:10]} 21. Rxd6 {[%clk 0:01:41]}  Bxf5 {[%clk 0:01:07]} 22. Rxg6 {[%clk 0:01:40]}  Bxg6 {[%clk 0:01:06]} 23. Bxh6 {[%clk 0:01:35]}  Rad8 {[%clk 0:00:54]} 24. Be3 {[%clk 0:01:29]}  Nb3 {[%clk 0:00:50]} 25. Rd1 {[%clk 0:01:26]}  Rxd1+ {[%clk 0:00:48]} 26. Qxd1 {[%clk 0:01:26]}  Nxc4 {[%clk 0:00:48]} 27. Bh6 {[%clk 0:01:22]}  Kh7 {[%clk 0:00:27]} 28. Bg5 {[%clk 0:01:20]}  Nxb2 {[%clk 0:00:24]} 29. Qe2 {[%clk 0:01:20]}  Re6 {[%clk 0:00:13]} 30. Qxb2 {[%clk 0:01:19]}  Rd6 {[%clk 0:00:13]} 31. g4 {[%clk 0:01:17]}  b5 {[%clk 0:00:07]} 32. h5 {[%clk 0:01:17]} 1-0

[Event "January 2 Early 2024"]
[Site "https://www.chess.com"]
[Date "2024.01.02"]
[Round "5"]
[White "Gabdushev, Ruslan"]
[Black "Souleidis, Georgios"]
[Result "0-1"]
[Board "99"]
[TimeControl "180+1"]
[WhiteFideId "4137833"]
[BlackFideId "4206827"]
[WhiteElo "2435"]
[BlackElo "2622"]
[WhiteTeam "RUS"]
[BlackTeam "GRE"]
[WhiteClock "0:00:25"]
[BlackClock "0:01:01"]

1. b3 {[%clk 0:03:00]}  d5 {[%clk 0:02:58]} 2. Bb2 {[%clk 0:02:59]}  Bf5 {[%clk 0:02:58]} 3. e3 {[%clk 0:02:59]}  e6 {[%clk 0:02:58]} 4. f4 {[%clk 0:02:57]}  Nf6 {[%clk 0:02:58]} 5. Nf3 {[%clk 0:02:56]}  a6 {[%clk 0:02:56]} 6. Bd3 {[%clk 0:02:55]}  Nbd7 {[%clk 0:02:49]} 7. Bxf5 {[%clk 0:02:51]}  exf5 {[%clk 0:02:49]} 8. O-O {[%clk 0:02:49]}  Bd6 {[%clk 0:02:49]} 9. c4 {[%clk 0:02:46]}  dxc4 {[%clk 0:02:42]} 10. bxc4 {[%clk 0:02:45]}  O-O {[%clk 0:02:42]} 11. Qc2 {[%clk 0:02:44]}  g6 {[%clk 0:02:41]} 12. Nc3 {[%clk 0:02:31]}  c6 {[%clk 0:02:37]} 13. a4 {[%clk 0:02:28]}  Re8 {[%clk 0:02:37]} 14. Rab1 {[%clk 0:02:26]}  Bf8 {[%clk 0:02:31]} 15. Ba1 {[%clk 0:02:22]}  Qc7 {[%clk 0:02:24]} 16. Ne2 {[%clk 0:02:15]}  Bg7 {[%clk 0:02:18]} 17. h3 {[%clk 0:02:13]}  Rad8 {[%clk 0:02:15]} 18. Bc3 {[%clk 0:02:04]}  Nc5 {[%clk 0:02:04]} 19. Ne5 {[%clk 0:01:54]}  Nfe4 {[%clk 0:01:54]} 20. d4 {[%clk 0:01:43]}  Nxc3 {[%clk 0:01:52]} 21. Nxc3 {[%clk 0:01:42]}  Ne6 {[%clk 0:01:44]} 22. Qb3 {[%clk 0:01:37]}  Re7 {[%clk 0:01:39]} 23. c5 {[%clk 0:01:30]}  Rde8 {[%clk 0:01:28]} 24. Nc4 {[%clk 0:01:19]}  Nd8 {[%clk 0:01:23]} 25. Nd1 {[%clk 0:01:05]}  Qd7 {[%clk 0:01:07]} 26. Nd6 {[%clk 0:01:03]}  Rf8 {[%clk 0:01:07]} 27. Nf2 {[%clk 0:01:00]}  Kh8 {[%clk 0:01:07]} 28. Nd3 {[%clk 0:00:53]}  Rxe3 {[%clk 0:01:06]} 29. Qc4 {[%clk 0:00:50]}  Qe6 {[%clk 0:01:02]} 30. Rb4 {[%clk 0:00:42]}  Qxc4 {[%clk 0:01:01]} 31. Rxc4 {[%clk 0:00:25]}  Rxd3 {[%clk 0:01:01]} 0-1